fUSD/lending_fUSD_20250515
["ID","MTS","AMOUNT","RATE_DAILY","PERIOD"]
[361116621,1747272643413,-686.36,0.00011815,2]
[361116622,1747272643424,-400.0,0.00011815,2]
[361116623,1747272643434,-454.42,0.00011815,2]
[361116624,1747272643443,-629.65,0.00011815,2]
[361116625,1747272643453,-400.0,0.00011815,2]
[361116626,1747272643462,-400.0,0.00011815,2]
[361116627,1747272643472,-400.0,0.00011815,2]
[361116628,1747272643482,-177.71073097,0.00011815,2]
[361116629,1747272643492,-1250.09,0.00011815,2]
[361116630,1747272643502,-3303.95,0.00011815,2]
[361116631,1747272643511,-4194.48,0.00011815,2]
[361116632,1747272643520,-411.7,0.00011815,2]
[361116633,1747272643529,-400.0,0.00011815,2]
[361116634,1747272643539,-151.0,0.00011815,2]
[361116635,1747272643548,-400.0,0.00011815,2]
[361116637,1747272643558,-451.95,0.00011815,2]
[361116639,1747272643567,-400.0,0.00011815,2]
[361116640,1747272643577,-3656.92,0.00011815,2]
[361116642,1747272643586,-400.0,0.00011815,2]
[361116644,1747272643596,-477.14,0.00011815,2]
[361116646,1747272643605,-1014.39,0.00011815,2]
[361116647,1747272643615,-400.0,0.00011815,2]
[361116649,1747272643624,-400.0,0.00011815,2]
[361116651,1747272643633,-1483.17,0.00011815,2]
[361116652,1747272643642,-866.27,0.00011815,2]
[361116654,1747272643651,-400.0,0.00011815,2]
[361116655,1747272643660,-453.95,0.00011815,2]
[361116656,1747272643669,-547.86,0.00011815,2]
[361116657,1747272643678,-557.26,0.00011815,2]
[361116658,1747272643687,-400.0,0.00011815,2]
[361116659,1747272643695,-650.8,0.00011815,2]
[361116660,1747272643704,-400.0,0.00011815,2]
[361116661,1747272643714,-400.0,0.00011815,2]
[361116662,1747272643723,-2322.91,0.00011815,2]
[361116663,1747272643732,-682.7,0.00011815,2]
[361116664,1747272643741,-837.31,0.00011815,2]
[361116665,1747272643750,-702.64,0.00011815,2]
[361116666,1747272643760,-400.0,0.00011815,2]
[361116667,1747272643769,-495.87,0.00011815,2]
[361116668,1747272643778,-544.57,0.00011815,2]
[361116669,1747272643786,-400.0,0.00011815,2]
[361116670,1747272643795,-2365.13,0.00011815,2]
[361116671,1747272643804,-809.36,0.00011815,2]
[361116672,1747272643812,-400.0,0.00011815,2]
[361116673,1747272643821,-902.49,0.00011815,2]
[361116674,1747272643830,-1273.73,0.00011815,2]
[361116675,1747272643840,-3867.51,0.00011815,2]
[361116676,1747272643848,-1000.0,0.00011815,2]
[361116677,1747272643857,-438.313279,0.00011815,2]
[361116678,1747272643866,-400.0,0.00011815,2]
[361116679,1747272643875,-400.0,0.00011815,2]
[361116680,1747272643884,-13635.59,0.00011815,2]
[361116681,1747272643893,-400.0,0.00011815,2]
[361116682,1747272643901,-876.97,0.00011815,2]
[361116683,1747272643910,-437.72,0.00011815,2]
[361116684,1747272643920,-684.67,0.00011815,2]
[361116685,1747272643928,-400.0,0.00011815,2]
[361116686,1747272643937,-224.73153538,0.00011815,2]
[361116687,1747272643966,-307.74846462,0.00011815,2]
[361116688,1747272643975,-4460.75,0.00011815,2]
[361116689,1747272643984,-400.0,0.00011815,2]
[361116690,1747272643993,-400.0,0.00011815,2]
[361116691,1747272644002,-1934.74,0.00011815,2]
[361116692,1747272644011,-400.0,0.00011815,2]
[361116693,1747272644020,-151.0,0.00011815,2]
[361116694,1747272644029,-151.0,0.00011815,2]
[361116695,1747272644038,-7717.11,0.00011815,2]
[361116696,1747272644047,-5267.91296993,0.00011815,2]
[361116698,1747272646057,-156.0538586,0.00011814,2]
[361116699,1747272646066,-39637.94703007,0.00011815,2]
[361116700,1747272646076,-400.0,0.00011815,2]
[361116701,1747272646085,-400.0,0.00011815,2]
[361116702,1747272646094,-400.0,0.00011815,2]
[361116703,1747272646105,-400.0,0.00011815,2]
[361116704,1747272646115,-425.34,0.00011815,2]
[361116705,1747272646124,-745.76,0.00011815,2]
[361116706,1747272646133,-400.0,0.00011815,2]
[361116707,1747272646142,-400.0,0.00011815,2]
[361116708,1747272646152,-400.0,0.00011815,2]
[361116709,1747272646162,-400.0,0.00011815,2]
[361116710,1747272646171,-400.0,0.00011815,2]
[361116711,1747272646180,-692.93,0.00011815,2]
[361116712,1747272646189,-151.0,0.00011815,2]
[361116713,1747272646198,-154.662452,0.00011815,2]
[361116714,1747272646208,-1148.28,0.00011815,2]
[361116715,1747272646216,-400.0,0.00011815,2]
[361116716,1747272646226,-427.94656357,0.00011815,2]
[361116717,1747272646325,-350.4986,0.00011815,2]
[361116718,1747272646337,-901.21483643,0.00011815,2]
[361116719,1747272646347,-588.32,0.00011815,2]
[361116720,1747272646356,-121.70526357,0.00011815,2]
[361116721,1747272646368,-278.29473643,0.00011815,2]
[361116722,1747272646377,-430.12,0.00011815,2]
[361116723,1747272646387,-400.0,0.00011815,2]
[361116724,1747272646397,-1389.48514357,0.00011815,2]
[361116725,1747272646409,-358.66000013,0.00011815,2]
[361116726,1747272646437,-251.4448563,0.00011815,2]
[361116727,1747272646447,-151.0,0.00011815,2]
[361116728,1747272646457,-714.87,0.00011815,2]
[361116729,1747272646467,-470.83,0.00011815,2]
[361116730,1747272646477,-400.0,0.00011815,2]
[361116731,1747272646488,-1401.39,0.00011815,2]
[361116732,1747272646498,-151.0,0.00011816,2]
[361116733,1747272646508,-151.0,0.00011816,2]
[361116734,1747272646519,-400.0,0.00011816,2]
[361116735,1747272646528,-151.0,0.00011816,2]
[361116736,1747272646539,-151.0,0.00011816,2]
[361116737,1747272646550,-151.0,0.00011816,2]
[361116738,1747272646560,-151.0,0.00011816,2]
[361116739,1747272646570,-6265.309252,0.00011816,2]
[361116742,1747273073374,450.0,0.0001,2]
[361116743,1747273241515,150.0,0.000135,5]
[361116744,1747273253384,150.0,0.00010854,7]
[361116745,1747273284811,204.16604681,0.00027,120]
[361116755,1747273438306,453.51,8.881e-05,2]
[361116765,1747273832149,-203.71460459,0.00010205,2]
[361116766,1747273832160,-161.26718789,0.000103,2]
[361116767,1747273832170,-1964.67,0.00010305,2]
[361116768,1747273832180,-205.01,0.00010305,2]
[361116769,1747273832190,-164.78,0.0001051,2]
[361116770,1747273832200,-164.78,0.00010517,2]
[361116771,1747273832210,-164.78,0.00010525,2]
[361116772,1747273832219,-164.78,0.00010532,2]
[361116773,1747273832229,-164.78,0.0001054,2]
[361116774,1747273832239,-164.78,0.00010547,2]
[361116775,1747273832248,-164.78,0.00010555,2]
[361116776,1747273832258,-164.78,0.00010562,2]
[361116777,1747273832267,-1200.0,0.00010733,2]
[361116778,1747273832277,-300.0,0.00010733,2]
[361116779,1747273832288,-198.35,0.00010734,2]
[361116780,1747273832297,-2715.79,0.00010734,2]
[361116781,1747273832307,-1832.67,0.00010807,2]
[361116782,1747273832316,-294.0504,0.00010858,2]
[361116783,1747273832326,-200.0,0.00010859,2]
[361116784,1747273832335,-1365.84,0.0001086,2]
[361116785,1747273832345,-152.60582685,0.00010949,2]
[361116786,1747273832356,-2570.43998241,0.00010958,2]
[361116787,1747273832365,-200.0,0.00010958,2]
[361116788,1747273832375,-500.0,0.00010959,2]
[361116789,1747273832385,-500.0,0.00010959,2]
[361116790,1747273832395,-500.0,0.00010959,2]
[361116791,1747273832404,-500.0,0.00010959,2]
[361116792,1747273832414,-500.0,0.00010959,2]
[361116793,1747273832423,-500.0,0.00010959,2]
[361116794,1747273832433,-500.0,0.00010959,2]
[361116795,1747273832442,-500.0,0.00010959,2]
[361116796,1747273832452,-150.0,0.00011023,2]
[361116797,1747273832462,-1000.0,0.00011024,2]
[361116798,1747273832472,-3186.1,0.000111,2]
[361116799,1747273832482,-3186.1,0.000111,2]
[361116800,1747273832491,-453.51,0.00011144,2]
[361116801,1747273832500,-200.0,0.0001117,2]
[361116802,1747273832510,-3186.1,0.000112,2]
[361116804,1747273832519,-416.07,0.00011241,2]
[361116806,1747273832530,-518.39419446,0.00011273,2]
[361116808,1747273832540,-3186.1,0.000114,2]
[361116810,1747273832549,-207.4,0.00011489,2]
[361116812,1747273832559,-203.71460459,0.00011614,2]
[361116814,1747273832569,-3186.1,0.000117,2]
[361116816,1747273832577,-999.999999,0.000117,2]
[361116818,1747273832587,-512.5115,0.00011714,2]
[361116820,1747273832596,-1470.5018,0.00011714,2]
[361116822,1747273832606,-6783.8864,0.00011714,2]
[361116824,1747273832615,-4308.2974,0.00011714,2]
[361116827,1747273832624,-317.6139,0.00011714,2]
[361116828,1747273832633,-652.4024,0.00011714,2]
[361116832,1747273832643,-2166.7142,0.00011714,2]
[361116835,1747273832652,-175.2448,0.00011714,2]
[361116838,1747273832662,-4566.81914382,0.00011714,2]
[361116840,1747273832672,-221.4779,0.00011715,2]
[361116843,1747273832682,-160.44031127,0.00011743,2]
[361116846,1747273832691,-864.16826048,0.00011762,2]
[361116849,1747273832703,-247.43269401,0.00011784,2]
[361116852,1747273832714,-14843.67332488,0.00011784,2]
[361116855,1747273832724,-234.11,0.000118,2]
[361116857,1747273832734,-10853.29307117,0.00011804,2]
[361116860,1747273832744,-155.0,0.00011807,2]
[361116863,1747273832754,-152.43157553,0.00011807,2]
[361116865,1747273832763,-689.36012397,0.00011807,2]
[361116868,1747273832772,-151.36319479,0.00011807,2]
[361116870,1747273832783,-151.29929045,0.00011807,2]
[361116873,1747273832793,-151.0,0.00011807,2]
[361116876,1747273832802,-415.87305402,0.00011813,2]
[361116879,1747273832812,-425.82108181,0.00011813,2]
[361116881,1747273832821,-439.65341886,0.00011813,2]
[361116884,1747273832831,-503.40675085,0.00011813,2]
[361116887,1747273832841,-400.0,0.00011813,2]
[361116890,1747273832850,-400.0,0.00011813,2]
[361116892,1747273832860,-400.0,0.00011813,2]
[361116895,1747273832869,-640.55,0.00011813,2]
[361116898,1747273832879,-400.0,0.00011813,2]
[361116900,1747273832888,-400.0,0.00011813,2]
[361116902,1747273832898,-400.0,0.00011813,2]
[361116904,1747273832908,-400.0,0.00011813,2]
[361116906,1747273832917,-400.0,0.00011813,2]
[361116908,1747273832927,-400.0,0.00011813,2]
[361116910,1747273832936,-1212.26,0.00011813,2]
[361116912,1747273832946,-587.69,0.00011813,2]
[361116914,1747273832955,-885.82,0.00011813,2]
[361116916,1747273832965,-623.19,0.00011813,2]
[361116918,1747273832974,-447.06,0.00011813,2]
[361116920,1747273832983,-400.0,0.00011813,2]
[361116922,1747273832992,-1203.08,0.00011813,2]
[361116924,1747273833002,-400.0,0.00011813,2]
[361116926,1747273833011,-476.4711379,0.00011813,2]
[361116927,1747273833021,-478.41161773,0.00011813,2]
[361116928,1747273833030,-400.0,0.00011813,2]
[361116929,1747273833040,-459.02095116,0.00011813,2]
[361116930,1747273833050,-400.0,0.00011813,2]
[361116931,1747273833059,-438.56,0.00011813,2]
[361116932,1747273833068,-413.12297327,0.00011813,2]
[361116933,1747273833078,-412.77,0.00011813,2]
[361116934,1747273833086,-450.88522337,0.00011813,2]
[361116935,1747273833096,-400.0,0.00011813,2]
[361116936,1747273833105,-527.13,0.00011813,2]
[361116937,1747273833115,-400.0,0.00011813,2]
[361116938,1747273833124,-444.67032188,0.00011813,2]
[361116939,1747273833133,-400.0,0.00011813,2]
[361116940,1747273833142,-843.58,0.00011813,2]
[361116941,1747273833151,-682.55,0.00011813,2]
[361116943,1747273833160,-400.0,0.00011813,2]
[361116944,1747273833170,-400.0,0.00011813,2]
[361116946,1747273833179,-400.0,0.00011813,2]
[361116948,1747273833188,-805.04,0.00011813,2]
[361116950,1747273833197,-400.0,0.00011813,2]
[361116952,1747273833207,-475.66650927,0.00011813,2]
[361116954,1747273833216,-322.40796158,0.00011813,2]
[361116956,1747273833226,-783.61,0.00011813,2]
[361116958,1747273833235,-458.83,0.00011813,2]
[361116960,1747273833245,-400.0,0.00011813,2]
[361116963,1747273833255,-153.24706379,0.00011813,2]
[361116965,1747273833265,-400.0,0.00011813,2]
[361116967,1747273833275,-400.0,0.00011813,2]
[361116969,1747273833286,-415.79,0.00011813,2]
[361116971,1747273833295,-400.0,0.00011813,2]
[361116973,1747273833304,-1972.82,0.00011813,2]
[361116975,1747273833314,-1267.27,0.00011813,2]
[361116977,1747273833323,-311.06279186,0.00011813,2]
[361116979,1747273833333,-845.5,0.00011813,2]
[361116981,1747273833343,-400.0,0.00011813,2]
[361116983,1747273833352,-245.82458653,0.00011813,2]
[361116985,1747273833361,-523.64,0.00011813,2]
[361116987,1747273833371,-400.0,0.00011813,2]
[361116989,1747273833380,-345.57964215,0.00011813,2]
[361116991,1747273833390,-2907.14,0.00011813,2]
[361116993,1747273833399,-619.3,0.00011813,2]
[361116995,1747273833409,-400.0,0.00011813,2]
[361116997,1747273833418,-400.0,0.00011813,2]
[361116999,1747273833427,-400.0,0.00011813,2]
[361117001,1747273833437,-406.28391181,0.00011813,2]
[361117003,1747273833446,-40940.83590391,0.00011813,2]
[361117007,1747273833480,-2556.58409609,0.00011813,2]
[361117009,1747273833489,-400.0,0.00011813,2]
[361117011,1747273833499,-144.27530391,0.00011813,2]
[361117040,1747273838031,-414.3,0.00011008,2]
[361117041,1747273838042,-77.94599508,0.00011713,2]
[361117049,1747273840190,-258.2,0.00011713,2]
[361117050,1747273840201,-5520.82010492,0.00011713,2]
[361117051,1747273840210,-341.73105569,0.00011813,2]
[361117052,1747273840219,-281.24511985,0.00011813,2]
[361117053,1747273840230,-124.08488015,0.00011813,2]
[361117054,1747273840239,-400.0,0.00011813,2]
[361117055,1747273840248,-465.71,0.00011813,2]
[361117056,1747273840256,-1156.84,0.00011813,2]
[361117057,1747273840265,-400.0,0.00011813,2]
[361117058,1747273840274,-748.49,0.00011813,2]
[361117059,1747273840282,-588.35,0.00011813,2]
[361117060,1747273840293,-400.0,0.00011813,2]
[361117061,1747273840302,-3356.11,0.00011813,2]
[361117062,1747273840311,-523.37244705,0.00011813,2]
[361117063,1747273840319,-454.19679409,0.00011813,2]
[361117064,1747273840327,-469.84,0.00011813,2]
[361117065,1747273840335,-400.0,0.00011813,2]
[361117066,1747273840344,-400.0,0.00011813,2]
[361117067,1747273840352,-400.0,0.00011813,2]
[361117068,1747273840359,-400.0,0.00011813,2]
[361117069,1747273840368,-324.026289,0.00011813,2]
[361117070,1747273840378,-400.0,0.00011813,2]
[361117071,1747273840387,-806.9,0.00011813,2]
[361117072,1747273840397,-400.0,0.00011813,2]
[361117073,1747273840407,-417.3843438,0.00011813,2]
[361117074,1747273840417,-289.31649747,0.00011813,2]
[361117075,1747273840427,-1716.08,0.00011813,2]
[361117076,1747273840436,-156.72907093,0.00011813,2]
[361117077,1747273840446,-400.0,0.00011814,2]
[361117078,1747273840455,-400.0,0.00011814,2]
[361117079,1747273840465,-400.0,0.00011814,2]
[361117080,1747273840475,-400.0,0.00011814,2]
[361117081,1747273840485,-400.0,0.00011814,2]
[361117082,1747273840494,-302.56967751,0.00011814,2]
[361117083,1747273840578,-106.19613552,0.00011814,2]
[361117084,1747273840589,-587.96182417,0.00011814,2]
[361117085,1747273840598,-400.0,0.00011814,2]
[361117086,1747273840608,-234.28060084,0.00011814,2]
[361117087,1747273840629,-165.71939916,0.00011814,2]
[361117088,1747273840639,-104.35914682,0.00011814,2]
[361117098,1747273843299,-226.771,0.00011713,2]
[361117099,1747273843310,-206.05435908,0.00011814,2]
[361117100,1747273843322,-89.5864941,0.00011814,2]
[361117101,1747273843331,-399.57222008,0.00011814,2]
[361117102,1747273843340,-400.0,0.00011814,2]
[361117103,1747273843350,-400.0,0.00011814,2]
[361117104,1747273843360,-312.05275392,0.00011814,2]
[361117105,1747273843369,-215.82671822,0.00011814,2]
[361117106,1747273843381,-184.17328178,0.00011814,2]
[361117107,1747273843391,-305.75408605,0.00011814,2]
[361117108,1747273843400,-400.0,0.00011814,2]
[361117109,1747273843410,-197.22538329,0.00011814,2]
[361117110,1747273843441,-400.0,0.00011813,2]
[361117111,1747273843450,-70.36340703,0.00011814,2]
[361117112,1747273843461,-471.55120968,0.00011814,2]
[361117113,1747273843470,-380.83931186,0.00011814,2]
[361117119,1747273846198,-400.0,0.00011813,2]
[361117120,1747273846208,-400.0,0.00011813,2]
[361117121,1747273846217,-19.16068814,0.00011814,2]
[361117122,1747273846226,-492.62,0.00011814,2]
[361117123,1747273846236,-430.56453782,0.00011814,2]
[361117124,1747273846245,-265.99854227,0.00011814,2]
[361117125,1747273846254,-400.0,0.00011814,2]
[361117126,1747273846263,-498.94511,0.00011814,2]
[361117127,1747273846272,-400.0,0.00011814,2]
[361117128,1747273846281,-465.88,0.00011814,2]
[361117129,1747273846293,-400.0,0.00011814,2]
[361117130,1747273846302,-509.29,0.00011814,2]
[361117131,1747273846312,-400.0,0.00011814,2]
[361117132,1747273846321,-486.94588327,0.00011814,2]
[361117133,1747273846330,-418.84245089,0.00011814,2]
[361117134,1747273846340,-423.62388597,0.00011814,2]
[361117135,1747273846349,-518.29,0.00011814,2]
[361117136,1747273846358,-400.0,0.00011814,2]
[361117137,1747273846367,-534.5,0.00011814,2]
[361117138,1747273846376,-400.0,0.00011814,2]
[361117139,1747273846385,-400.0,0.00011814,2]
[361117140,1747273846394,-426.7,0.00011814,2]
[361117141,1747273846403,-403.08520158,0.00011814,2]
[361117142,1747273846412,-400.0,0.00011814,2]
[361117143,1747273846420,-400.0,0.00011814,2]
[361117144,1747273846429,-323.84296367,0.00011814,2]
[361117145,1747273846437,-292.76519958,0.00011814,2]
[361117146,1747273846457,-107.23480042,0.00011814,2]
[361117147,1747273846466,-393.9905397,0.00011814,2]
[361117148,1747273846514,-6.0094603,0.00011814,2]
[361117149,1747273846523,-273.24148973,0.00011814,2]
[361117150,1747273846546,-126.75851027,0.00011814,2]
[361117151,1747273846556,-400.0,0.00011814,2]
[361117152,1747273846565,-400.0,0.00011814,2]
[361117153,1747273846575,-467.95,0.00011814,2]
[361117154,1747273846584,-400.0,0.00011814,2]
[361117155,1747273846593,-400.0,0.00011814,2]
[361117156,1747273846602,-535.56,0.00011814,2]
[361117157,1747273846611,-400.0,0.00011814,2]
[361117158,1747273846620,-400.0,0.00011814,2]
[361117159,1747273846629,-400.0,0.00011814,2]
[361117160,1747273846639,-400.0,0.00011814,2]
[361117161,1747273846648,-280.40065141,0.00011814,2]
[361117162,1747273846657,-400.0,0.00011814,2]
[361117163,1747273846667,-163.99406566,0.00011814,2]
[361117164,1747273846896,-248.02310629,0.00011814,2]
[361117165,1747273846907,-400.0,0.00011814,2]
[361117166,1747273846916,-400.0,0.00011814,2]
[361117167,1747273846926,-400.0,0.00011814,2]
[361117168,1747273846935,-400.0,0.00011814,2]
[361117169,1747273846944,-400.0,0.00011814,2]
[361117170,1747273846953,-400.0,0.00011814,2]
[361117171,1747273846963,-400.0,0.00011814,2]
[361117172,1747273846972,-420.34001171,0.00011814,2]
[361117173,1747273846981,-406.36826942,0.00011814,2]
[361117174,1747273846990,-410.96,0.00011814,2]
[361117175,1747273846999,-400.0,0.00011814,2]
[361117176,1747273847009,-1.2870106,0.00011814,2]
[361117177,1747273847033,-383.47075684,0.00011814,2]
[361117178,1747273847077,-138.80564418,0.00011814,2]
[361117179,1747273847086,-541.46,0.00011814,2]
[361117180,1747273847095,-400.0,0.00011814,2]
[361117181,1747273847104,-564.64,0.00011814,2]
[361117182,1747273847114,-908.03,0.00011814,2]
[361117183,1747273847123,-400.0,0.00011814,2]
[361117184,1747273847132,-410.36406489,0.00011814,2]
[361117185,1747273847140,-428.21968885,0.00011814,2]
[361117186,1747273847149,-400.0,0.00011814,2]
[361117187,1747273847159,-565.89,0.00011814,2]
[361117188,1747273847168,-400.0,0.00011814,2]
[361117189,1747273847177,-400.0,0.00011814,2]
[361117190,1747273847187,-400.0,0.00011814,2]
[361117191,1747273847195,-400.0,0.00011814,2]
[361117192,1747273847205,-400.0,0.00011814,2]
[361117193,1747273847214,-400.0,0.00011814,2]
[361117194,1747273847223,-400.0,0.00011814,2]
[361117195,1747273847232,-400.0,0.00011814,2]
[361117196,1747273847241,-400.0,0.00011814,2]
[361117197,1747273847250,-431.64,0.00011814,2]
[361117198,1747273847259,-603.04,0.00011814,2]
[361117199,1747273847268,-400.0,0.00011814,2]
[361117200,1747273847278,-400.0,0.00011814,2]
[361117201,1747273847287,-127.91060208,0.00011814,2]
[361117202,1747274290216,150.0,0.00010786,7]
[361117203,1747274609351,186.0,0.00027397,120]
[361117204,1747274711528,456.2,8.703e-05,2]
[361117206,1747274895957,152.0,0.00027397,120]
[361117207,1747274907244,450.0,0.0001,2]
[361117221,1747275032310,-161.22,0.00010522,2]
[361117222,1747275032320,-2186.8,0.00010534,2]
[361117223,1747275032329,-500.0,0.00010534,2]
[361117224,1747275032338,-200.8,0.00010559,2]
[361117225,1747275032348,-196.35257797,0.00010613,2]
[361117226,1747275032358,-164.56,0.00010688,2]
[361117227,1747275032368,-1200.0,0.00010713,2]
[361117228,1747275032378,-300.0,0.00010713,2]
[361117229,1747275032388,-5415.91711254,0.00010714,2]
[361117230,1747275032400,-359.990481,0.00010714,2]
[361117231,1747275032423,-2900.76936807,0.00010714,2]
[361117232,1747275032458,-362.5,0.00010714,2]
[361117233,1747275032514,-5190.21163903,0.00010714,2]
[361117234,1747275032567,-855.83944016,0.00010714,2]
[361117249,1747275038267,-1239.59455847,0.00010714,2]
[361117250,1747275038280,-2172.528378,0.00010714,2]
[361117251,1747275038291,-2052.2052,0.00010714,2]
[361117252,1747275038303,-2063.57616,0.00010714,2]
[361117253,1747275038314,-803.09766273,0.00010714,2]
[361117254,1747275038323,-186.52,0.00010753,2]
[361117255,1747275038333,-814.60233727,0.00010827,2]
[361117256,1747275038344,-185.39766273,0.00010827,2]
[361117257,1747275038353,-496.49987331,0.00010959,2]
[361117258,1747275038364,-3.50012669,0.00010959,2]
[361117259,1747275038373,-500.0,0.00010959,2]
[361117260,1747275038383,-500.0,0.00010959,2]
[361117261,1747275038392,-500.0,0.00010959,2]
[361117262,1747275038402,-500.0,0.00010959,2]
[361117263,1747275038411,-500.0,0.00010959,2]
[361117264,1747275038421,-500.0,0.00010959,2]
[361117265,1747275038430,-500.0,0.00010959,2]
[361117266,1747275038439,-456.2,0.00010966,2]
[361117267,1747275038450,-424.4,0.00011,2]
[361117268,1747275038460,-200.0,0.00011073,2]
[361117269,1747275038471,-1639.48,0.000111,2]
[361117270,1747275038483,-1036.5465657,0.000111,2]
[361117271,1747275038509,-393.855,0.000111,2]
[361117272,1747275038521,-209.0784343,0.000111,2]
[361117273,1747275038530,-212.2,0.000111,2]
[361117275,1747275038540,-212.2,0.000111,2]
[361117276,1747275038550,-424.4,0.000111,2]
[361117278,1747275038559,-351.18876203,0.000111,2]
[361117280,1747275038570,-572.44123797,0.000111,2]
[361117282,1747275038579,-457.51,0.000111,2]
[361117284,1747275038588,-165.91,0.00011192,2]
[361117286,1747275038597,-50.5639261,0.000112,2]
[361117290,1747275038621,-864.2360739,0.000112,2]
[361117292,1747275038631,-1639.48,0.000112,2]
[361117294,1747275038640,-212.2,0.000112,2]
[361117296,1747275038651,-424.4,0.000112,2]
[361117298,1747275038660,-207.4,0.0001125,2]
[361117300,1747275038671,-1069.59174981,0.000113,2]
[361117302,1747275038680,-200.0,0.00011336,2]
[361117304,1747275038689,-1639.48,0.000114,2]
[361117306,1747275038698,-212.2,0.000114,2]
[361117308,1747275038708,-424.4,0.000114,2]
[361117310,1747275038717,-150.0,0.0001144,2]
[361117312,1747275038727,-1606.62,0.00011441,2]
[361117314,1747275038737,-2751.0,0.00011507,2]
[361117316,1747275038748,-589.03895957,0.00011544,2]
[361117380,1747275040382,-275.12930091,0.00011544,2]
[361117381,1747275040392,-1069.59174981,0.00011635,2]
[361117383,1747275040403,-154.0,0.00011697,2]
[361117385,1747275040413,-969.29388089,0.00011697,2]
[361117386,1747275040434,-997.69438107,0.00011697,2]
[361117387,1747275040593,-4857.01173804,0.00011697,2]
[361117388,1747275040603,-1552.9102489,0.00011697,2]
[361117389,1747275040648,-1262.72518836,0.00011697,2]
[361117390,1747275040659,-1000.0,0.00011697,2]
[361117391,1747275040703,-219.36456274,0.00011697,2]
[361117392,1747275040713,-5941.0,0.00011697,2]
[361117393,1747275040722,-1147.0,0.00011697,2]
[361117394,1747275040732,-1639.48,0.000117,2]
[361117395,1747275040742,-212.2,0.000117,2]
[361117396,1747275040751,-424.4,0.000117,2]
[361117397,1747275040760,-155.0,0.00011707,2]
[361117398,1747275040770,-258.80018731,0.00011707,2]
[361117399,1747275040779,-151.0,0.00011707,2]
[361117400,1747275040789,-2129.1943,0.00011713,2]
[361117401,1747275040798,-4110.13722951,0.00011713,2]
[361117402,1747275040808,-1062.42372044,0.00011713,2]
[361117403,1747275040819,-4056.6420938,0.00011713,2]
[361117404,1747275040831,-8297.32620048,0.00011713,2]
[361117405,1747275040841,-162.39257689,0.00011713,2]
[361117406,1747275040850,-2748.3972,0.00011714,2]
[361117407,1747275040860,-23142.4449177,0.00011809,2]
[361117408,1747275040869,-179.493695,0.00011812,2]
[361117409,1747275040879,-793.6266,0.00011812,2]
[361117410,1747275040889,-506.84778,0.00011812,2]
[361117411,1747275040899,-400.0,0.00011812,2]
[361117412,1747275040908,-499.84545312,0.00011812,2]
[361117413,1747275040918,-400.0,0.00011812,2]
[361117414,1747275040927,-1180.4,0.00011812,2]
[361117415,1747275040937,-476.67360168,0.00011812,2]
[361117416,1747275040946,-579.87,0.00011812,2]
[361117417,1747275040956,-400.0,0.00011812,2]
[361117418,1747275040971,-400.0,0.00011812,2]
[361117419,1747275040994,-536.8372266,0.00011812,2]
[361117420,1747275041015,-400.0,0.00011812,2]
[361117421,1747275041037,-900.83,0.00011812,2]